fUST/lending_fUST_20260114
["ID","MTS","AMOUNT","RATE_DAILY","PERIOD"]
[401767363,1768367317856,-284.3906387,0.00010744,2]
[401767364,1768367319300,-167.06774744,0.00010744,2]
[401767365,1768367322606,-286.83516312,0.00010744,2]
[401767366,1768367324171,-341.64940547,0.00010744,2]
[401767367,1768367334514,2381.1,0.0001061,2]
[401767375,1768367359366,1552.63998611,0.00030137,120]
[401767377,1768367370008,165.48,7.352e-05,2]
[401767378,1768367370410,198.58,7.646e-05,2]
[401767379,1768367370812,231.68,7.94e-05,2]
[401767380,1768367371227,264.78,8.234e-05,2]
[401767381,1768367371625,297.87,8.528e-05,2]
[401767382,1768367372053,330.97,8.823e-05,2]
[401767383,1768367406388,-83.64299554,0.00010744,2]
[401767384,1768367406412,-449.44048394,0.00010744,2]
[401767400,1768367432433,-121.55951606,0.00010744,2]
[401767402,1768367432442,-600.71624415,0.00010872,2]
[401767404,1768367432452,-266.94124861,0.00011,2]
[401767421,1768367438613,-85090.70331904,0.00011,2]
[401767428,1768367439905,167.41,8.245e-05,2]
[401767429,1768367440328,188.34,8.539e-05,2]
[401767437,1768367440752,209.26,8.834e-05,2]
[401767465,1768367440994,-3e-08,0.00011,2]
[401767481,1768367441128,-851.46063097,0.00011,2]
[401768025,1768367446533,-48161.6860956,0.00011,2]
[401768815,1768367528493,-1500.0,0.00010959,2]
[401768816,1768367528640,-427.0999349,0.00011,2]
[401768817,1768367535954,-10000.01,0.00011,2]
[401768818,1768367574518,168.77,8.022e-05,2]
[401768819,1768367574920,192.87,8.319e-05,2]
[401768820,1768367575314,216.98,8.616e-05,2]
[401768821,1768367575707,241.09,8.913e-05,2]
[401768822,1768367719514,-9180.3,0.00011,2]
[401768823,1768367721808,-10000.01,0.00011,2]
[401768824,1768367727926,-10000.01,0.00011,2]
[401768825,1768367793339,-339.36099647,0.00010907,2]
[401768826,1768367793371,-500.0,0.00010907,2]
[401768827,1768367793404,-500.0,0.00010907,2]
[401768828,1768367793439,-500.0,0.00010907,2]
[401768829,1768367793484,-500.0,0.00010907,2]
[401768830,1768367793521,-500.0,0.00010907,2]
[401768831,1768367793558,-500.0,0.00010907,2]
[401768832,1768367793593,-500.0,0.00010907,2]
[401768833,1768367793625,-500.0,0.00010907,2]
[401768834,1768367793656,-358.82521527,0.00010907,2]
[401768835,1768367793687,-103.63757652,0.00010907,2]
[401768836,1768367794024,-396.36242348,0.00010907,2]
[401768837,1768367794184,-500.0,0.00010907,2]
[401768838,1768367794209,-126.01179528,0.00010907,2]
[401768839,1768367795835,-373.98820472,0.00010907,2]
[401768840,1768367795868,-500.0,0.00010907,2]
[401768841,1768367795903,-500.0,0.00010907,2]
[401768842,1768367795934,-264.2899837,0.00010907,2]
[401768843,1768367795967,-189.72017103,0.00010907,2]
[401768844,1768367795999,-163.99650619,0.00010907,2]
[401768845,1768367796122,-6016.02026872,0.00010908,2]
[401768846,1768367801908,-10000.01,0.00010908,2]
[401768847,1768367808037,-10000.01,0.00010908,2]
[401768848,1768367811856,-3712.9968753,0.00010005,2]
[401768850,1768367843773,175.373143,0.00010083,2]
[401768851,1768367844013,175.373143,0.00010083,120]
[401768852,1768367912557,2398.6431064,9.954e-05,2]
[401768853,1768367912579,10000.01,9.954e-05,2]
[401768854,1768367912601,2055.2274018,9.954e-05,2]
[401768855,1768367913282,-314.57897566,0.00010648,2]
[401768871,1768367973690,159.12,8.539e-05,2]
[401768872,1768367982402,9561.8,0.00030136,120]
[401768873,1768368006481,-24.76180721,0.00010648,2]
[401768874,1768368006505,-134.90803832,0.00010648,2]
[401768875,1768368007995,-270.98600293,0.00010648,2]
[401768876,1768368010037,-154.3066349,0.00010648,2]
[401768877,1768368039500,161.7,7.951e-05,2]
[401768878,1768368039909,184.8,8.245e-05,2]
[401768879,1768368040301,207.9,8.54e-05,2]
[401768880,1768368040699,231.0,8.834e-05,2]
[401768881,1768368081442,-8.79932385,0.00010648,2]
[401768882,1768368081469,-310.24766087,0.00010741,2]
[401768883,1768368185009,7000.2625982,9.907e-05,2]
[401768884,1768368185033,10000.01,9.907e-05,2]
[401768885,1768368185056,5626.5037845,9.907e-05,2]
[401768886,1768368231385,-278.45425839,0.00010741,2]
[401768887,1768368231415,-228.85736207,0.00010834,2]
[401768888,1768368231440,-11.68837954,0.00010834,2]
[401768889,1768368234002,-210.73383476,0.00010834,2]
[401768890,1768368239554,158.71,7.664e-05,2]
[401768891,1768368240135,185.17,7.959e-05,2]
[401768892,1768368240533,211.62,8.254e-05,2]
[401768893,1768368240929,238.07,8.548e-05,2]
[401768894,1768368241502,264.52,8.843e-05,2]
[401768895,1768368276954,-500.0,0.00010813,2]
[401768896,1768368276982,-288.40469912,0.00010813,2]
[401768897,1768368277010,-148.85087987,0.00010834,2]
[401768898,1768368277041,-181.27275558,0.00010906,2]
[401768899,1768368277071,-300.0,0.00010906,2]
[401768900,1768368277100,-300.0,0.00010906,2]
[401768901,1768368277130,-1200.0,0.00010906,2]
[401768902,1768368277159,-300.0,0.00010906,2]
[401768903,1768368277186,-300.0,0.00010906,2]
[401768904,1768368277866,-3753.85329696,0.00010908,2]
[401768905,1768368277912,-10000.01,0.00010908,2]
[401768906,1768368277927,-10000.01,0.00010908,2]
[401768907,1768368277962,-10000.01,0.00010908,2]
[401768908,1768368278050,-10000.01,0.00010908,2]
[401768909,1768368283930,-500.0,0.00010906,2]
[401768910,1768368283973,-500.0,0.00010906,2]
[401768911,1768368284011,-324.70578866,0.00010906,2]
[401768912,1768368284083,-7350.59842268,0.00010908,2]
[401768913,1768368284129,-10000.01,0.00010908,2]
[401768914,1768368284457,-10000.01,0.00010908,2]
[401768915,1768368284589,-10000.01,0.00010908,2]
[401768916,1768368288592,-10000.01,0.00010908,2]
[401768917,1768368288843,-10000.01,0.00010908,2]
[401768918,1768368289079,-10000.01,0.00010908,2]
[401768919,1768368289446,-10000.01,0.00010908,2]
[401768920,1768368289555,-10000.01,0.00010908,2]
[401768921,1768368305580,442.46,6.826e-05,2]
[401768922,1768368305978,884.91,7.151e-05,2]
[401768923,1768368306377,1327.37,7.476e-05,2]
[401768924,1768368306865,1769.82,7.801e-05,2]
[401768925,1768368307289,2212.28,8.126e-05,2]
[401768926,1768368307718,2654.74,8.451e-05,2]
[401768927,1768368308113,708.43,8.776e-05,2]
[401768928,1768368308139,2388.76,8.776e-05,2]
[401768929,1768368308517,3539.65,9.101e-05,2]
[401768930,1768368308921,3982.1,9.426e-05,2]
[401768931,1768368309329,89.5,9.751e-05,2]
[401768932,1768368309360,4335.06,9.751e-05,2]
[401768933,1768368316547,-184.26073351,0.00010834,2]
[401768934,1768368319740,-127.59627649,0.00010834,2]
[401768935,1768368319760,-155.3571637,0.00010834,2]
[401768936,1768368322930,-165.18982704,0.00010834,2]
[401768937,1768368325804,-359.20701261,0.00010735,2]
[401768938,1768368328396,-140.79298739,0.00010735,2]
[401768939,1768368328418,-201.24470196,0.00010735,2]
[401768940,1768368331226,-166.66666668,0.00010735,2]
[401768941,1768368332647,-132.08863136,0.00010735,2]
[401768942,1768368332668,-20.02136864,0.00010834,2]
[401768943,1768368334290,-246.08303223,0.00010834,2]
[401768947,1768368381721,257.88,6.2e-05,2]
[401768948,1768368382117,515.76,6.495e-05,2]
[401768949,1768368382665,773.64,6.791e-05,2]
[401768950,1768368383065,1031.53,7.086e-05,2]
[401768951,1768368383462,1289.41,7.381e-05,2]
[401768952,1768368383868,1547.29,7.676e-05,2]
[401768953,1768368384274,1805.17,7.972e-05,2]
[401768954,1768368384670,2063.05,8.267e-05,2]
[401768955,1768368385070,716.28,8.562e-05,2]
[401768956,1768368385096,1604.65,8.562e-05,2]
[401768957,1768368385463,2578.81,8.857e-05,2]
[401768958,1768368399880,-500.0,0.00010735,2]
[401768959,1768368399903,-127.70441399,0.00010735,2]
[401768960,1768368401450,-214.48256097,0.00010735,2]
[401768961,1768368404090,-157.81302504,0.00010735,2]
[401768962,1768368404113,-7.42428353,0.00010735,2]
[401768977,1768368451460,-144.83959553,0.00010735,2]
[401768978,1768368451490,-500.0,0.00010735,2]
[401768979,1768368451522,-300.0,0.00010833,2]
[401768980,1768368451551,-576.92788088,0.00010834,2]
[401768984,1768368457254,251.21,6.188e-05,2]
[401768985,1768368457404,-8478.24252359,0.00010834,2]
[401768986,1768368457756,502.42,6.483e-05,2]
[401768987,1768368458085,753.63,6.777e-05,2]
[401768988,1768368458503,1004.83,7.072e-05,2]
[401768989,1768368458932,1256.04,7.367e-05,2]
[401768990,1768368459341,1507.25,7.661e-05,2]
[401768991,1768368459747,1758.46,7.956e-05,2]
[401768992,1768368460151,2009.67,8.251e-05,2]
[401768993,1768368460350,-1956.41862076,0.00010834,2]
[401768994,1768368460381,-169.19039177,0.00010872,2]
[401768995,1768368460410,-500.0,0.00010872,2]
[401768996,1768368460439,-500.0,0.00010872,2]
[401768997,1768368460469,-500.0,0.00010872,2]
[401768998,1768368460618,-500.0,0.00010872,2]
[401768999,1768368460649,-500.0,0.00010872,2]
[401769000,1768368460679,-251.1189789,0.00010901,2]
[401769001,1768368460797,2260.88,8.545e-05,2]
[401769002,1768368460855,-246.55401714,0.00010901,2]
[401769003,1768368460948,2512.09,8.84e-05,2]
[401769005,1768368463799,-215.1212512,0.00010901,2]
[401769006,1768368463828,-500.0,0.00010901,2]
[401769007,1768368463857,-500.0,0.00010901,2]
[401769008,1768368463886,-500.0,0.00010901,2]
[401769009,1768368463916,-500.0,0.00010901,2]
[401769010,1768368463945,-2230.315306,0.00010901,2]
[401769011,1768368463978,-500.0,0.00010901,2]
[401769012,1768368464112,-109.1368856,0.00010901,2]
[401769015,1768368469663,-390.8631144,0.00010901,2]
[401769016,1768368469704,-500.0,0.00010901,2]
[401769017,1768368469739,-500.0,0.00010901,2]
[401769018,1768368469777,-500.0,0.00010901,2]
[401769019,1768368469815,-1957.856,0.00010901,2]
[401769020,1768368469857,-500.0,0.00010906,2]
[401769021,1768368469895,-529.36191254,0.00010906,2]
[401769022,1768368470043,-243.84794612,0.00010906,2]
[401769026,1768368478979,-256.15205388,0.00010906,2]
[401769027,1768368479010,-252.96086109,0.00010906,2]
[401769028,1768368479068,-8981.78417006,0.00010907,2]
[401769035,1768368505376,500.0,0.00030136,120]
[401769036,1768368505614,500.0,0.00030136,120]
[401769037,1768368505889,500.0,0.00030136,120]
[401769038,1768368506129,500.0,0.00030136,120]
[401769039,1768368506345,500.0,0.00030136,120]
[401769040,1768368506576,500.0,0.00030136,120]
[401769041,1768368506820,162.60767263,0.00030136,120]
[401769042,1768368532255,157.0,8.3e-07,2]
[401769043,1768368532651,190.83,6.437e-05,2]
[401769044,1768368533107,286.24,6.73e-05,2]
[401769045,1768368533506,381.66,7.022e-05,2]
[401769046,1768368533915,477.07,7.315e-05,2]
[401769047,1768368534415,572.49,7.608e-05,2]
[401769048,1768368534803,667.9,7.9e-05,2]
[401769049,1768368535228,763.32,8.193e-05,2]
[401769050,1768368535687,858.73,8.485e-05,2]
[401769051,1768368536107,954.15,8.778e-05,2]
[401769052,1768368607510,159.36,7.767e-05,2]
[401769053,1768368607915,191.23,8.077e-05,2]
[401769054,1768368608438,223.1,8.388e-05,2]
[401769055,1768368608874,254.97,8.698e-05,2]
[401769056,1768368609317,286.84,9.009e-05,2]
[401769057,1768368609693,-293.3912338,0.00010735,2]
[401769058,1768368609922,318.71,9.32e-05,2]
[401769059,1768368611670,-167.82562087,0.00010735,2]
[401769060,1768368623276,-38.78314533,0.00010735,2]
[401769061,1768368623305,-223.07322793,0.00010872,2]
[401769062,1768368623336,-500.0,0.00010872,2]
[401769063,1768368623364,-154.62090033,0.00010872,2]
[401769064,1768368623391,-392.24,0.000109,2]
[401769065,1768368623418,-300.0,0.00010906,2]
[401769066,1768368623447,-300.0,0.00010906,2]
[401769067,1768368623477,-300.0,0.00010906,2]
[401769068,1768368623506,-1200.0,0.00010906,2]
[401769069,1768368623535,-573.0,0.00010906,2]
[401769070,1768368623565,-78.71945282,0.00010906,2]
[401769071,1768368626293,-1879.13654718,0.00010906,2]
[401769072,1768368626324,-2230.315306,0.00010906,2]
[401769073,1768368626355,-461.67526834,0.00010906,2]
[401769102,1768368631607,-401.15789213,0.00010907,2]
[401769104,1768368632544,-5993.99230414,0.00010907,2]
[401769118,1768368637753,-28302.80735581,0.00010907,2]
[401769120,1768368637765,-6065.63707087,0.00010907,2]
[401769122,1768368637776,-254.62120699,0.00010907,2]
[401769123,1768368637798,-237.55269752,0.00010907,2]
[401769124,1768368637808,-500.0,0.00010907,2]
[401769125,1768368637818,-500.0,0.00010907,2]
[401769126,1768368637828,-220.65206749,0.00010907,2]
[401769127,1768368637840,-279.34793251,0.00010907,2]
[401769128,1768368637850,-500.0,0.00010907,2]
[401769129,1768368637860,-500.0,0.00010907,2]
[401769130,1768368637870,-374.32081705,0.00010907,2]
[401769131,1768368637881,-125.67918295,0.00010907,2]
[401769132,1768368637891,-326.40882332,0.00010907,2]
[401769133,1768368637901,-173.59117668,0.00010907,2]
[401769134,1768368637910,-500.0,0.00010907,2]
[401769135,1768368637919,-500.0,0.00010907,2]
[401769136,1768368637928,-500.0,0.00010907,2]
[401769137,1768368637938,-500.0,0.00010907,2]
[401769138,1768368637948,-420.2219251,0.00010907,2]
[401769139,1768368637959,-79.7780749,0.00010907,2]
[401769140,1768368637968,-500.0,0.00010907,2]
[401769141,1768368637977,-490.35329521,0.00010907,2]
[401769142,1768368637985,-325.23321006,0.00010908,2]
[401769143,1768368637995,-1273.61541983,0.00010908,2]
[401769144,1768368638006,-558.0997,0.00010908,2]
[401769145,1768368638016,-967.72451616,0.00010908,2]
[401769180,1768368640166,-3e-08,0.00010908,2]
[401769182,1768368640178,-1840.03539928,0.00010908,2]
[401769733,1768368645699,-9548.09300859,0.00010908,2]
[401770283,1768368650976,-10000.01,0.00010908,2]
[401770317,1768368651302,-10000.01,0.00010908,2]
[401770338,1768368651499,-10000.01,0.00010908,2]
[401770359,1768368651701,-10000.01,0.00010908,2]
[401771398,1768368663021,-10000.01,0.00010908,2]
[401771419,1768368663212,-10000.01,0.00010908,2]
[401771441,1768368663418,-10000.01,0.00010908,2]
[401771462,1768368663659,-10000.01,0.00010908,2]
[401772096,1768368669925,155.0,8.246e-05,2]
[401772181,1768368675798,440.0,6.183e-05,2]
[401772183,1768368676192,880.01,6.478e-05,2]
[401772184,1768368676613,1320.01,6.772e-05,2]
[401772185,1768368677029,1760.01,7.066e-05,2]
[401772187,1768368677425,2200.02,7.361e-05,2]
[401772188,1768368677826,2640.02,7.655e-05,2]
[401772189,1768368678254,604.94,7.95e-05,2]
[401772190,1768368678280,2475.08,7.95e-05,2]
[401772191,1768368678664,3520.03,8.244e-05,2]
[401772192,1768368679102,3960.03,8.539e-05,2]
[401772193,1768368679497,44.87,8.833e-05,2]
[401772194,1768368679521,4355.17,8.833e-05,2]
[401772203,1768368708708,10000.01,0.00010045,2]
[401772204,1768368708730,10000.01,0.00010045,2]
[401772205,1768368708751,10000.01,0.00010045,2]
[401772206,1768368708774,10000.01,0.00010045,2]
[401772207,1768368708799,10000.01,0.00010045,2]
[401772208,1768368708822,10000.01,0.00010045,2]
[401772209,1768368708846,148.7070336,0.00010045,2]
[401772211,1768368709573,-500.0,0.00010872,2]
[401772212,1768368709601,-198.14688424,0.00010872,2]
[401772213,1768368713229,-301.85311576,0.00010872,2]
[401772214,1768368713256,-74.1840966,0.00010872,2]
[401772215,1768368716337,-233.89628774,0.00010872,2]
[401772216,1768368717863,-260.27449549,0.00010648,2]
[401772220,1768368720840,-374.95654188,0.00010648,2]
[401772221,1768368720873,-3.53413691,0.00010648,2]
[401772222,1768368722468,-181.56803995,0.00010648,2]
[401772224,1768368724273,-249.67327297,0.00010648,2]
[401772226,1768368727678,-613.42999997,0.00010648,2]
[401772227,1768368729152,-222.25473987,0.00010648,2]
[401772228,1768368732912,-296.61904294,0.00010648,2]
[401772229,1768368734318,-300.0,0.00010648,2]
[401772231,1768368735769,-479.82470118,0.00010648,2]
[401772233,1768368737749,-162.62594836,0.00010648,2]
[401772234,1768368751465,1140.99,6.196e-05,2]
[401772235,1768368751878,2281.98,6.491e-05,2]
[401772236,1768368752282,3422.97,6.786e-05,2]
[401772237,1768368752685,3005.3629664,7.081e-05,2]
[401772238,1768368752708,1558.5970336,7.081e-05,2]
[401772239,1768368753081,5704.95,7.377e-05,2]
[401772240,1768368753507,2736.4629664,7.672e-05,2]
[401772241,1768368753534,4109.4770336,7.672e-05,2]
[401772242,1768368753900,5890.5329664,7.967e-05,2]
[401772243,1768368753924,2096.3970336,7.967e-05,2]
[401772244,1768368754303,7903.6129664,8.262e-05,2]
[401772245,1768368754329,1224.3070336,8.262e-05,2]
[401772246,1768368754761,8775.7029664,8.557e-05,2]
[401772247,1768368754785,1493.2070336,8.557e-05,2]
[401772248,1768368755173,10000.01,8.852e-05,2]
[401772249,1768368755357,1409.89,8.852e-05,2]
[401772255,1768368786469,-28.85334318,0.00010648,2]
[401772256,1768368786490,-191.91961566,0.00010872,2]
[401772257,1768368786510,-37.93751498,0.00010872,2]
[401772258,1768368788642,-310.26600713,0.00010872,2]
[401772259,1768368791274,-151.79647789,0.00010872,2]
[401772260,1768368791297,-291.14675922,0.00010872,2]
[401772261,1768368794673,-315.29737132,0.00010807,2]
[401772262,1768368798148,-330.0582376,0.00010807,2]
[401772263,1768368799658,-224.35942418,0.00010807,2]
[401772264,1768368802779,-240.97468499,0.00010807,2]
[401772265,1768368805463,-318.28435848,0.00010807,2]
[401772266,1768368807942,-253.24859106,0.00010807,2]
[401772267,1768368810135,-173.51716562,0.00010648,2]
[401772268,1768368812161,-163.04901972,0.00010648,2]
[401772269,1768368814826,-52.14491374,0.00010648,2]
[401772270,1768368814848,-106.73490808,0.00010648,2]
[401772271,1768368816358,-236.98259447,0.00010648,2]
[401772272,1768368820338,-259.99429441,0.00010648,2]
[401772273,1768368824278,-464.21349406,0.00010648,2]
[401772274,1768368825787,-475.99742899,0.00010648,2]
[401772275,1768368827531,1191.19,6.216e-05,2]
[401772276,1768368827926,2382.38,6.512e-05,2]
[401772277,1768368828381,3573.57,6.808e-05,2]
[401772278,1768368828780,2852.87,7.104e-05,2]
[401772279,1768368828802,1911.89,7.104e-05,2]
[401772280,1768368828827,-10.92167632,0.00010648,2]
[401772281,1768368828848,-259.93105029,0.00010648,2]
[401772282,1768368829226,5955.95,7.401e-05,2]
[401772283,1768368829639,2132.17,7.697e-05,2]
[401772284,1768368829661,5014.97,7.697e-05,2]
[401772285,1768368830064,4985.04,7.993e-05,2]
[401772286,1768368830088,3353.29,7.993e-05,2]
[401772287,1768368830406,-169.60906997,0.00010648,2]
[401772288,1768368830456,6646.72,8.289e-05,2]
[401772289,1768368830480,2882.8,8.289e-05,2]
[401772290,1768368830927,7117.21,8.585e-05,2]
[401772291,1768368830953,3603.49,8.585e-05,2]
[401772292,1768368831337,6396.52,8.881e-05,2]
[401772293,1768368831361,5515.37,8.881e-05,2]
[401772294,1768368833575,-427.28699744,0.00010648,2]
[401772295,1768368836725,-331.48209646,0.00010648,2]
[401772296,1768368839405,-180.32183878,0.00010648,2]
[401772297,1768368841046,-196.49220155,0.00010648,2]
[401772298,1768368842584,-328.24929525,0.00010648,2]
[401772299,1768368845001,-221.57,0.00010648,2]
[401772300,1768368847838,-480.61734207,0.00010648,2]
[401772301,1768368849313,-298.30615314,0.00010648,2]
[401772302,1768368850897,-340.27734342,0.00010648,2]
[401772303,1768368853434,-260.75810347,0.00010648,2]
[401772304,1768368853459,-61.04532622,0.00010806,2]
[401772305,1768368855582,-238.95467378,0.00010806,2]
[401772306,1768368855609,-57.93459029,0.00010807,2]
[401772307,1768368857615,-225.87514555,0.00010807,2]
[401772308,1768368859152,-344.52996672,0.00010807,2]
[401772309,1768368862371,-152.19587863,0.00010807,2]
[401772310,1768368870822,184.54813481,0.00023574,120]
[401772311,1768368870870,171.89532771,0.00023574,120]
[401772316,1768368885642,200.0,0.00011201,20]
[401772319,1768368903382,1168.68,6.974e-05,2]
[401772320,1768368903808,2337.36,7.307e-05,2]
[401772321,1768368904268,3506.04,7.639e-05,2]
[401772322,1768368904694,2987.93,7.971e-05,2]
[401772323,1768368904728,1686.79,7.971e-05,2]
[401772324,1768368905078,5843.4,8.303e-05,2]
[401772325,1768368905501,2469.82,8.635e-05,2]
[401772326,1768368905528,4542.26,8.635e-05,2]
[401772327,1768368905888,5457.75,8.967e-05,2]
[401772328,1768368905914,2723.01,8.967e-05,2]
[401772329,1768368906291,7277.0,9.299e-05,2]
[401772330,1768368906317,2072.44,9.299e-05,2]
[401772331,1768368906703,7927.57,9.631e-05,2]
[401772332,1768368906725,2590.55,9.631e-05,2]
[401772333,1768368907102,6428.43,9.964e-05,2]
[401772334,1768368907124,5258.38,9.964e-05,2]
[401772335,1768368978929,769.84,6.232e-05,2]
[401772336,1768368979347,1539.67,6.529e-05,2]
[401772337,1768368979766,2309.51,6.826e-05,2]
[401772338,1768368980155,3079.34,7.123e-05,2]
[401772339,1768368980670,2301.65,7.42e-05,2]
[401772340,1768368980696,1547.53,7.42e-05,2]
[401772341,1768368980950,4619.02,7.716e-05,2]
[401772342,1768368981358,3833.46,8.013e-05,2]
[401772343,1768368981381,1555.39,8.013e-05,2]
[401772344,1768368981813,6158.69,8.31e-05,2]
[401772345,1768368982721,6928.53,8.607e-05,2]
[401772346,1768368983165,7698.36,8.903e-05,2]
[401772347,1768369005538,200.0,0.00011177,20]
[401772348,1768369023066,300.0,9.905e-05,2]
[401772350,1768369056951,230.95,6.153e-05,2]
[401772351,1768369057344,461.9,6.446e-05,2]
[401772352,1768369057788,692.85,6.739e-05,2]
[401772353,1768369058175,714.95,7.032e-05,2]
[401772354,1768369058209,208.85,7.032e-05,2]
[401772355,1768369058586,1154.75,7.325e-05,2]
[401772356,1768369058981,1385.71,7.618e-05,2]
[401772357,1768369059399,1616.66,7.911e-05,2]
[401772358,1768369059788,1847.61,8.204e-05,2]
[401772359,1768369060176,2078.56,8.497e-05,2]
[401772360,1768369060576,2309.51,8.79e-05,2]
[401772361,1768369080174,2214.87258,9.847e-05,2]
[401772362,1768369082665,345.36,6.993e-05,2]
[401772363,1768369082927,345.36,6.993e-05,2]
[401772364,1768369116209,-316.77571629,0.00010554,2]
[401772365,1768369131836,-134.77307151,0.00010554,2]
[401772366,1768369131858,-222.14267006,0.00010554,2]
[401772367,1768369133172,219.95,6.284e-05,2]
[401772368,1768369134110,293.27,6.557e-05,2]
[401772369,1768369134496,-156.67628726,0.00010554,2]
[401772370,1768369135061,366.58,6.83e-05,2]
[401772371,1768369135486,439.9,7.103e-05,2]
[401772372,1768369136126,513.22,7.376e-05,2]
[401772373,1768369136294,586.54,7.65e-05,2]
[401772374,1768369136583,-157.87416908,0.00010554,2]
[401772375,1768369136731,659.85,7.923e-05,2]
[401772376,1768369137148,733.17,8.196e-05,2]
[401772377,1768369139837,-168.07811467,0.00010554,2]
[401772378,1768369142621,-198.33543308,0.00010554,2]
[401772379,1768369144803,-300.0,0.00010553,2]
[401772380,1768369144825,-71.21193837,0.00010554,2]
[401772381,1768369147820,-200.2296027,0.00010554,2]
[401772382,1768369149682,-261.97235303,0.00010554,2]
[401772383,1768369151712,-203.20803785,0.00010554,2]
[401772384,1768369153862,-166.46654512,0.00010554,2]
[401772385,1768369153883,-40.15537061,0.00010554,2]
[401772386,1768369155950,-212.33809476,0.00010554,2]
[401772387,1768369157561,-268.44803052,0.00010554,2]
[401772388,1768369177213,-178.51215727,0.00010554,2]
[401772389,1768369185489,200.0,0.00011185,20]
[401772390,1768369207731,168.38,6.309e-05,2]
[401772391,1768369208116,224.51,6.583e-05,2]
[401772392,1768369208566,280.64,6.858e-05,2]
[401772393,1768369208966,336.77,7.132e-05,2]
[401772394,1768369209019,-166.19165126,0.00010553,2]
[401772395,1768369209377,392.89,7.406e-05,2]
[401772396,1768369209780,449.02,7.681e-05,2]
[401772397,1768369210208,505.15,7.955e-05,2]
[401772398,1768369210623,561.28,8.229e-05,2]
[401772399,1768369212441,-133.80834874,0.00010553,2]
[401772400,1768369212464,-300.0,0.00010553,2]
[401772401,1768369212488,-74.18748215,0.00010553,2]
[401772402,1768369215232,-217.6,0.00010553,2]
[401772403,1768369216964,-908.21251785,0.00010553,2]
[401772404,1768369216988,-33.06485267,0.00010553,2]
[401772405,1768369221746,-371.27309417,0.00010553,2]
[401772406,1768369223154,-163.66205316,0.00010553,2]
[401772407,1768369224398,-426.47224628,0.00010554,2]
[401772408,1768369227062,-196.51,0.00010554,2]
[401772409,1768369238528,-2741.5031908,0.00010554,2]
[401772411,1768369238632,-2782.45417574,0.00010554,2]
[401772412,1768369238813,-4435.10164852,0.00010554,2]
[401772413,1768369254073,-461.67526834,0.000108,2]
[401772414,1768369254105,-1957.856,0.000108,2]
[401772415,1768369254136,-2230.315306,0.000108,2]
[401772416,1768369270037,250.0,0.00010411,2]
[401772417,1768369271269,450.31685132,0.0001,2]
[401772418,1768369271295,9549.68314868,0.0001,2]
[401772419,1768369272887,-300.0,0.00010803,2]
[401772420,1768369279486,152.26,7.28e-05,2]
[401772421,1768369279877,174.01,7.549e-05,2]
[401772422,1768369280269,195.76,7.819e-05,2]
[401772423,1768369280671,217.51,8.089e-05,2]
[401772424,1768369288134,500.0,0.00010735,2]
[401772425,1768369288329,500.0,0.00010735,2]
[401772426,1768369288482,500.0,0.00010735,2]
[401772427,1768369289641,885.0,0.00010735,2]
[401772428,1768369289921,500.0,0.00010735,2]
[401772429,1768369290196,500.0,0.00010735,2]
[401772430,1768369290240,500.0,0.00010735,2]
[401772431,1768369291922,500.0,0.00010735,2]
[401772432,1768369292134,500.0,0.00010735,2]
[401772433,1768369303011,178.734,0.00010591,2]
[401772434,1768369322643,300.0,0.00010803,2]
[401772435,1768369339853,500.0,0.00010598,2]
[401772436,1768369340004,500.0,0.00010735,2]